bitfinex/quotes_BTCUSD_20251214
["timestamp","ask_amount","ask_price","bid_price","bid_amount"]
[1765726882394,0.02807285,89054.0,89052.0,0.22458788]
[1765726882595,0.26388058,89056.0,89052.0,0.01122939]
[1765726882717,0.02807253,89055.0,89052.0,0.01122939]
[1765726882928,0.02807253,89055.0,89053.0,0.05418362]
[1765726883573,0.03930154,89055.0,89053.0,0.05418362]
[1765726883976,0.02807253,89055.0,89053.0,0.05418362]
[1765726884164,0.02807222,89056.0,89055.0,0.22458031]
[1765726884396,0.02807222,89056.0,89055.0,0.26053446]
[1765726884938,0.02868148,89056.0,89055.0,0.26053446]
[1765726885124,0.00060926,89056.0,89055.0,0.26053446]
[1765726885830,0.03068148,89056.0,89055.0,0.26053446]
[1765726886174,0.00260926,89056.0,89055.0,0.26053446]
[1765726886834,0.00460926,89056.0,89055.0,0.26053446]
[1765726887492,0.00460926,89056.0,89055.0,0.28392446]
[1765726888117,0.00460926,89056.0,89055.0,0.26053446]
[1765726888935,0.00460926,89056.0,89055.0,0.30083733]
[1765726889547,0.00460926,89056.0,89055.0,0.27744733]
[1765726889681,0.00460926,89056.0,89055.0,0.26214733]
[1765726893496,0.00460926,89056.0,89055.0,0.26053446]
[1765726895419,0.00890926,89056.0,89055.0,0.26053446]
[1765726895600,0.00460926,89056.0,89055.0,0.26053446]
[1765726896515,0.00460926,89056.0,89055.0,0.29922446]
[1765726897514,0.00460926,89056.0,89055.0,0.27583446]
[1765726898184,0.00460926,89056.0,89055.0,0.29922446]
[1765726900161,0.00460926,89056.0,89055.0,0.30083733]
[1765726901122,0.00260926,89056.0,89055.0,0.30083733]
[1765726901721,0.00060926,89056.0,89055.0,1.60925733]
[1765726902031,8.243e-05,89074.0,89073.0,0.22453493]
[1765726902267,8.243e-05,89074.0,89073.0,0.33350974]
[1765726902477,8.243e-05,89074.0,89073.0,0.35689974]
[1765726903846,0.00208243,89074.0,89073.0,0.35689974]
[1765726904055,0.00408243,89074.0,89073.0,0.35689974]
[1765726904669,0.00408243,89074.0,89073.0,0.37461974]
[1765726905083,0.00208243,89074.0,89073.0,0.3791131]
[1765726906732,8.243e-05,89074.0,89073.0,1.3791131]
[1765726907143,8.243e-05,89074.0,89073.0,1.3831131]
[1765726907353,8.243e-05,89074.0,89073.0,1.3811131]
[1765726907536,0.00108243,89074.0,89073.0,0.3851131]
[1765726907765,0.00163058,89074.0,89073.0,1.3851131]
[1765726908305,0.00163058,89074.0,89073.0,1.3831131]
[1765726908508,0.00163058,89074.0,89073.0,1.3871131]
[1765726913927,0.00163058,89074.0,89073.0,1.6778131]
[1765726914097,0.00163058,89074.0,89073.0,1.6600931]
[1765726914291,0.00163058,89074.0,89073.0,1.6778131]
[1765726918704,0.00163058,89074.0,89073.0,0.6778131]
[1765726918906,0.00163058,89074.0,89073.0,1.6778131]
[1765726921692,0.00163058,89074.0,89073.0,1.6600931]
[1765726921808,0.00163058,89074.0,89073.0,1.6778131]
[1765726927962,0.00163058,89074.0,89073.0,0.6778131]
[1765726928171,0.00163058,89074.0,89073.0,1.6778131]
[1765726935415,0.00163058,89074.0,89073.0,1.6600931]
[1765726935616,0.00163058,89074.0,89073.0,1.6778131]
[1765726937608,0.00163058,89074.0,89073.0,1.75848929]
[1765726937785,0.00163058,89074.0,89073.0,1.74076929]
[1765726938002,0.00163058,89074.0,89073.0,1.6778131]
[1765726938202,0.00163058,89074.0,89073.0,1.75848929]
[1765726938461,0.00163058,89074.0,89073.0,1.6778131]
[1765726939027,0.00163058,89074.0,89073.0,1.75848929]
[1765726939230,0.00163058,89074.0,89073.0,1.6778131]
[1765726939423,0.00163058,89074.0,89073.0,1.75848929]
[1765726942801,0.00039191,89074.0,89073.0,1.6778131]
[1765726948941,0.00039191,89074.0,89073.0,1.72783149]
[1765726949926,0.0004,89080.0,89079.0,0.56523819]
[1765726950119,0.0004,89104.0,89079.0,0.56523819]
[1765726950120,0.0004,89104.0,89102.0,0.22446185]
[1765726950331,0.0004824,89103.0,89102.0,0.24109185]
[1765726950572,0.0004824,89103.0,89102.0,0.22446185]
[1765726951988,0.0014824,89103.0,89102.0,0.22446185]
[1765726952333,0.0024824,89103.0,89102.0,0.22446185]
[1765726952541,0.0014824,89103.0,89102.0,0.29760422]
[1765726952777,0.22447021,89099.0,89094.0,0.03369402]
[1765726952975,0.22446185,89102.0,89092.0,0.01122435]
[1765726952976,0.01982397,89095.0,89092.0,0.01122435]
[1765726953175,0.01982397,89095.0,89093.0,0.22448452]
[1765726953176,0.0043,89095.0,89093.0,0.22448452]
[1765726953403,0.0043,89095.0,89094.0,0.27504707]
[1765726953603,0.0280593,89097.0,89094.0,0.28627117]
[1765726953982,0.02805867,89099.0,89096.0,0.23569979]
[1765726954184,0.02905867,89099.0,89096.0,0.23569979]
[1765726954788,0.03235804,89101.0,89100.0,0.22446689]
[1765726954992,0.03235804,89101.0,89100.0,0.27778483]
[1765726955219,0.0043,89101.0,89100.0,0.27778483]
[1765726956109,0.0051219,89101.0,89100.0,0.27778483]
[1765726956334,0.03617994,89101.0,89100.0,0.27778483]
[1765726956536,0.0038219,89101.0,89100.0,0.30158483]
[1765726956747,0.0038219,89101.0,89100.0,0.27778483]
[1765726956947,0.0038219,89101.0,89100.0,0.30158483]
[1765726957080,0.0038219,89101.0,89100.0,0.27778483]
[1765726957480,0.0058219,89101.0,89100.0,0.27778483]
[1765726958481,0.0058219,89101.0,89100.0,0.31821483]
[1765726958918,0.0058219,89101.0,89100.0,0.27778483]
[1765726959583,0.0028219,89101.0,89100.0,0.27778483]
[1765726959962,0.0038219,89101.0,89100.0,0.27778483]
[1765726960178,0.0018219,89101.0,89100.0,0.30158483]
[1765726962158,0.0018219,89101.0,89100.0,0.31821483]
[1765726962726,0.0018219,89101.0,89100.0,0.27778483]
[1765726962934,0.0018219,89101.0,89100.0,0.30158483]
[1765726964446,0.0018219,89101.0,89100.0,0.31821483]
[1765726976356,0.0018219,89101.0,89100.0,0.3198277]
[1765726976574,0.0018219,89101.0,89100.0,1.3198277]
[1765726976794,0.0018219,89101.0,89100.0,1.32431953]
[1765726977813,0.0008219,89101.0,89100.0,1.32431953]
[1765726978066,0.0008219,89101.0,89100.0,1.32531953]
[1765726979201,0.0008219,89101.0,89100.0,1.32731953]
[1765726979405,0.0008219,89101.0,89100.0,1.61801953]
[1765726982330,0.0008219,89101.0,89100.0,1.63573953]
[1765726992605,0.0008219,89101.0,89100.0,0.63573953]
[1765726992840,0.0008219,89101.0,89100.0,1.63573953]
[1765726994739,0.0008219,89101.0,89100.0,1.7164963]
[1765726994940,0.0008219,89101.0,89100.0,1.63573953]
[1765726996395,0.0008219,89101.0,89100.0,1.7164963]
[1765727000823,0.0008219,89101.0,89100.0,1.63573953]
[1765727001230,0.00019892,89101.0,89100.0,1.63573953]
[1765727003613,0.0004824,89103.0,89102.0,1.51516185]
[1765727003811,0.0004824,89103.0,89102.0,1.64356234]
[1765727003966,0.0004824,89103.0,89102.0,1.66660234]
[1765727004768,0.0004824,89103.0,89102.0,1.66760234]
[1765727004967,0.0004,89104.0,89102.0,1.71762073]
[1765727004968,2.4e-06,89104.0,89102.0,1.71762073]
[1765727005166,0.0004,89118.0,89115.0,1.0]
[1765727005366,0.0004,89118.0,89116.0,1.44704762]
[1765727005594,0.0004,89118.0,89116.0,1.47170049]
[1765727005756,0.0004,89118.0,89116.0,1.47619159]
[1765727007052,0.0004,89118.0,89116.0,1.59041811]
[1765727007253,0.0004,89124.0,89119.0,0.22441903]
[1765727007496,0.0004,89124.0,89123.0,0.22440896]
[1765727007656,0.0004,89124.0,89123.0,1.30293673]
[1765727008056,0.05,89135.0,89131.0,0.25265882]
[1765727008302,0.00051581,89133.0,89132.0,1.03416]
[1765727008719,0.00051581,89133.0,89132.0,1.03577287]
[1765727008920,0.00051581,89133.0,89132.0,1.06945048]
[1765727009534,0.00148941,89133.0,89132.0,1.06945048]
[1765727009728,0.00148941,89133.0,89132.0,1.1799581]
[1765727010149,0.00348941,89133.0,89132.0,1.1799581]
[1765727010369,0.00548941,89133.0,89132.0,1.1799581]
[1765727010550,0.00348941,89133.0,89132.0,1.1799581]
[1765727010890,0.00148941,89133.0,89132.0,1.1799581]
[1765727012291,0.00148941,89133.0,89132.0,1.2043881]
[1765727013452,0.00148941,89133.0,89132.0,1.4950881]
[1765727017392,0.00148941,89133.0,89132.0,0.8476881]
[1765727018207,0.00148941,89133.0,89132.0,1.4950881]
[1765727018436,0.00148941,89133.0,89132.0,0.4950881]
[1765727018633,0.00148941,89133.0,89132.0,0.6314681]
[1765727018811,0.00148941,89133.0,89132.0,0.6491881]
[1765727019218,0.00148941,89133.0,89132.0,1.4950881]
[1765727019818,0.00248941,89133.0,89132.0,1.4950881]
[1765727020978,0.00248941,89133.0,89132.0,0.4950881]
[1765727021194,0.00148941,89133.0,89132.0,0.6002881]
[1765727021754,0.00148941,89133.0,89132.0,0.45332523]
[1765727021951,0.00578941,89133.0,89132.0,0.11250762]
[1765727022164,0.00578941,89133.0,89123.0,0.06044215]
[1765727022165,0.01121994,89127.0,89124.0,0.03815211]
[1765727022380,0.0043,89130.0,89126.0,0.03368513]
[1765727022576,0.01121944,89131.0,89128.0,0.01121981]
[1765727022755,0.0043,89130.0,89128.0,0.01121981]
[1765727022957,0.00515194,89129.0,89128.0,0.07215722]
[1765727023973,0.00085194,89129.0,89128.0,0.07215722]
[1765727024320,0.00185194,89129.0,89128.0,0.07215722]
[1765727024501,0.00185194,89129.0,89128.0,0.11254722]
[1765727029342,0.00185194,89129.0,89128.0,0.14623023]
[1765727030059,0.00185194,89129.0,89128.0,0.10584023]
[1765727031416,0.00185194,89129.0,89128.0,0.14623023]
[1765727031614,0.00185194,89129.0,89128.0,0.12180023]
[1765727031878,0.00185194,89129.0,89128.0,0.10584023]
[1765727032756,0.00185194,89129.0,89128.0,0.07215722]
[1765727032961,0.00185194,89129.0,89128.0,0.08215722]
[1765727036124,0.01045194,89129.0,89128.0,0.01]
[1765727037486,0.00615194,89129.0,89128.0,0.01]
[1765727040805,0.01045194,89129.0,89128.0,0.01]
[1765727042019,0.02717194,89129.0,89128.0,0.01]
[1765727042524,0.03117194,89129.0,89128.0,0.01]
[1765727042661,0.02717194,89129.0,89128.0,0.01]
[1765727043067,0.03217194,89129.0,89128.0,0.01]
[1765727043254,0.00945194,89129.0,89128.0,0.02]
[1765727043454,0.03017194,89129.0,89128.0,0.02]
[1765727043669,0.03117194,89129.0,89128.0,0.02]
[1765727043869,0.01345194,89129.0,89128.0,0.02]
[1765727044153,0.02817194,89129.0,89128.0,0.02]
[1765727044360,0.05722117,89129.0,89128.0,0.02]
[1765727045626,0.03950117,89129.0,89128.0,0.02]
[1765727045826,0.05722117,89129.0,89128.0,0.02]
[1765727046034,0.34792117,89129.0,89128.0,0.02]
[1765727046247,0.31987194,89129.0,89128.0,0.02]
[1765727051703,0.353566,89129.0,89128.0,0.02]
[1765727051901,0.40358439,89129.0,89128.0,0.02]
[1765727052309,0.01122397,89095.0,89091.0,0.02]
[1765727052467,0.01122384,89096.0,89092.0,0.26240553]
[1765727052677,0.24000083,89096.0,89093.0,0.01122422]
[1765727052880,0.0043,89093.0,89092.0,0.03791879]
[1765727053692,0.0043,89093.0,89092.0,0.02669444]
[1765727054341,0.0063,89093.0,89092.0,0.02669444]
[1765727055146,0.0106,89093.0,89092.0,0.02669444]
[1765727055362,0.0126,89093.0,89090.0,0.0112246]
[1765727055578,0.0126,89093.0,89090.0,0.23571491]
[1765727056279,0.0086,89093.0,89090.0,0.23571491]
[1765727056805,0.0096,89093.0,89090.0,0.23571491]
[1765727057246,0.0053,89093.0,89090.0,0.23571491]
[1765727057494,0.0053,89093.0,89091.0,0.22448782]
[1765727057743,0.0063,89093.0,89092.0,0.07183817]
[1765727058394,0.0053,89093.0,89092.0,0.07183817]
[1765727058872,0.0053,89093.0,89091.0,0.22448782]
[1765727059103,0.24100969,89093.0,89088.0,0.01122485]
[1765727059367,0.0043,89089.0,89086.0,0.23572707]
[1765727059577,0.0043,89088.0,89087.0,0.01122498]
[1765727060187,0.01552422,89093.0,89090.0,0.23571595]
[1765727060339,0.0043,89093.0,89090.0,0.23571595]
[1765727060769,0.0063,89093.0,89090.0,0.23571595]
[1765727061227,0.0043,89093.0,89090.0,0.23571595]
[1765727061545,0.0053,89093.0,89090.0,0.23571595]
[1765727062082,0.0053,89093.0,89092.0,0.22448704]
[1765727062309,0.0053,89093.0,89090.0,0.23571595]
[1765727062488,0.0063,89093.0,89090.0,0.23571595]
[1765727062689,0.0063,89093.0,89092.0,0.22448704]
[1765727062914,0.0053,89093.0,89092.0,0.22448704]
[1765727063085,0.0096,89093.0,89092.0,0.22448704]
[1765727063427,0.0116,89093.0,89092.0,0.22448704]
[1765727063928,0.003,89093.0,89092.0,0.29520206]
[1765727066185,0.002,89093.0,89092.0,0.29520206]
[1765727067841,0.004,89093.0,89092.0,0.29520206]
[1765727068547,0.004,89093.0,89092.0,0.33446493]
[1765727069345,0.002,89093.0,89092.0,0.33446493]
[1765727069526,0.01552284,89104.0,89101.0,0.23568757]
[1765727069726,0.0043,89104.0,89102.0,0.04826048]
[1765727070048,0.0323571,89104.0,89102.0,0.04826048]
[1765727070246,0.25681538,89104.0,89102.0,0.04826048]
[1765727070460,0.22875828,89104.0,89102.0,0.04826048]
[1765727070662,0.02805741,89103.0,89102.0,0.04826048]
[1765727071866,0.03235741,89103.0,89102.0,0.04826048]
[1765727073049,0.03535741,89103.0,89102.0,0.04826048]
[1765727073490,0.0073,89103.0,89102.0,0.04834288]
[1765727073980,0.0103,89103.0,89102.0,0.04834288]
[1765727075373,0.03835741,89103.0,89102.0,0.04834288]
[1765727076321,0.0103,89103.0,89102.0,0.04834288]
[1765727077505,0.04265741,89103.0,89102.0,0.04834288]
[1765727080538,0.04265741,89103.0,89102.0,8.24e-05]
[1765727082220,0.03835741,89103.0,89102.0,8.24e-05]
[1765727082955,0.04265741,89103.0,89102.0,8.24e-05]
[1765727083577,0.03835741,89103.0,89102.0,8.24e-05]
[1765727083777,0.04265741,89103.0,89102.0,8.24e-05]
[1765727085384,0.26711674,89103.0,89102.0,8.24e-05]
[1765727085625,0.23905933,89103.0,89102.0,8.24e-05]
[1765727085827,0.0146,89103.0,89102.0,8.24e-05]
[1765727086024,0.04265741,89103.0,89102.0,8.24e-05]
[1765727092040,0.03835741,89103.0,89102.0,8.24e-05]
[1765727094313,0.04265741,89103.0,89102.0,8.24e-05]
[1765727101662,0.02802,89103.0,89102.0,8.24e-05]
[1765727101792,0.02502,89103.0,89102.0,8.24e-05]
[1765727102167,0.02902,89103.0,89102.0,0.02478264]
[1765727102329,0.007,89103.0,89102.0,0.02478264]
[1765727102662,0.004,89103.0,89102.0,0.24924449]
[1765727102814,0.008,89103.0,89102.0,0.24924449]
[1765727103157,0.004,89103.0,89102.0,0.24924449]
[1765727103620,0.003,89103.0,89102.0,0.02478264]
[1765727103828,0.01122271,89105.0,89102.0,0.02478264]
[1765727104020,0.001,89103.0,89102.0,0.02478264]
[1765727104427,0.004,89103.0,89102.0,0.02478264]
[1765727104741,0.0083,89103.0,89102.0,8.24e-05]
[1765727104935,0.0096,89103.0,89102.0,8.24e-05]
[1765727105156,0.23505933,89103.0,89102.0,8.24e-05]
[1765727105624,0.52575933,89103.0,89102.0,8.24e-05]
[1765727106668,0.52475933,89103.0,89102.0,8.24e-05]
[1765727106834,0.52375933,89103.0,89102.0,8.24e-05]
[1765727107214,0.52375933,89103.0,89102.0,0.0030824]
[1765727107817,0.53425944,89103.0,89102.0,0.0030824]
[1765727108829,0.52375933,89103.0,89102.0,0.0030824]
[1765727112946,0.53498595,89103.0,89102.0,0.0030824]
[1765727118471,0.58500434,89103.0,89102.0,0.0030824]
[1765727118645,0.58500434,89103.0,89066.0,0.23578018]
[1765727118646,0.235762,89073.0,89069.0,0.23577226]
[1765727118851,0.235762,89073.0,89069.0,0.06069658]
[1765727119014,0.0043,89070.0,89069.0,0.06069658]
[1765727119799,0.0043,89070.0,89069.0,0.06369658]
[1765727120020,0.0043,89070.0,89069.0,0.06169658]
[1765727120257,0.0043,89070.0,89069.0,0.06069658]
[1765727120433,0.0043,89070.0,89069.0,0.06269658]
[1765727120636,0.0086,89070.0,89069.0,0.01422725]
[1765727120833,0.0043,89070.0,89069.0,0.01422725]
[1765727121879,0.0043,89075.0,89074.0,0.22452997]
[1765727122935,0.0043,89075.0,89073.0,0.23575984]
[1765727123136,0.0063,89075.0,89074.0,0.07185313]
[1765727123805,0.0053,89075.0,89074.0,0.07185313]
[1765727124221,0.0053,89075.0,89073.0,0.23575984]
[1765727124771,0.0043,89075.0,89073.0,0.23575984]
[1765727125181,0.0053,89075.0,89073.0,0.23575984]
[1765727125672,0.03336623,89075.0,89073.0,0.23575984]
[1765727126185,0.02906623,89075.0,89073.0,0.23575984]
[1765727126386,0.001,89075.0,89074.0,0.07554513]
[1765727127939,0.02906623,89075.0,89074.0,0.07554513]
[1765727128155,0.02806623,89075.0,89074.0,0.07554513]
[1765727128360,0.02806529,89078.0,89075.0,0.23575638]
[1765727129177,0.02806529,89078.0,89076.0,0.22452521]
[1765727129406,0.0280656,89077.0,89075.0,0.01122649]
[1765727129542,0.0280656,89077.0,89075.0,0.04572517]
[1765727129745,0.0280656,89077.0,89075.0,0.27025307]
[1765727130493,0.03006529,89078.0,89075.0,0.27025307]
[1765727130708,0.02906529,89078.0,89075.0,0.27025307]
[1765727130907,0.02906529,89078.0,89075.0,0.04572517]
[1765727131122,0.02806529,89078.0,89076.0,0.05284815]
[1765727131639,0.02906529,89078.0,89077.0,0.22452484]
[1765727131816,0.001,89078.0,89077.0,0.26715771]
[1765727132025,0.002,89078.0,89077.0,0.26715771]
[1765727132567,0.001,89078.0,89077.0,0.30085953]
[1765727132780,0.002,89078.0,89077.0,0.36585403]
[1765727133062,0.001,89078.0,89077.0,0.34940403]
[1765727133268,0.002,89078.0,89077.0,0.34940403]
[1765727133499,0.001,89078.0,89077.0,0.34940403]
[1765727134181,0.002,89078.0,89077.0,0.35240403]
[1765727134338,0.001,89078.0,89077.0,0.35240403]
[1765727134558,0.001,89078.0,89077.0,0.35440403]
[1765727135126,0.001,89078.0,89077.0,0.35240403]
[1765727135331,0.03236182,89089.0,89086.0,0.0112251]
[1765727135574,0.0043,89087.0,89086.0,0.05949377]
[1765727136567,0.0043,89087.0,89086.0,0.28399341]
[1765727136795,0.0053,89087.0,89086.0,0.04826867]
[1765727136965,0.03347009,89087.0,89086.0,0.04826867]
[1765727137987,0.04469507,89087.0,89083.0,0.01122548]
[1765727138162,0.0043,89084.0,89083.0,0.01122548]
[1765727139481,0.0333634,89084.0,89083.0,0.01122548]
[1765727139659,0.0053,89084.0,89083.0,0.01122548]
[1765727140747,0.0063,89084.0,89083.0,0.01122548]
[1765727143260,0.002,89084.0,89083.0,0.01122548]
[1765727145051,0.002,89084.0,89083.0,0.13585197]
[1765727145858,0.002,89084.0,89083.0,0.11289484]
[1765727146091,0.002,89084.0,89083.0,0.09644484]
[1765727151024,0.002,89084.0,89083.0,0.01283835]
[1765727151658,0.002,89084.0,89083.0,0.03740835]
[1765727151857,0.002,89084.0,89083.0,0.01283835]
[1765727170366,0.002,89084.0,89083.0,0.05195835]
[1765727171332,0.002,89084.0,89083.0,0.06318232]
[1765727171536,0.002,89084.0,89083.0,0.17368994]
[1765727181016,0.002,89084.0,89083.0,0.13456994]
[1765727181500,0.002,89084.0,89083.0,0.15706994]
[1765727182479,0.002,89084.0,89083.0,0.17368994]
[1765727183784,0.002,89084.0,89083.0,0.15118994]
[1765727187809,0.002,89084.0,89083.0,0.17564994]
[1765727188807,0.002,89084.0,89083.0,0.15118994]
[1765727189320,0.002,89084.0,89083.0,0.17564994]
[1765727203475,0.002,89084.0,89083.0,0.13456994]
[1765727206183,0.002,89084.0,89083.0,0.02406232]
[1765727207179,0.002,89084.0,89083.0,0.06462232]
[1765727208604,0.001,89084.0,89083.0,1.06462232]
[1765727209042,0.001,89084.0,89083.0,1.06562232]
[1765727209599,0.01122296,89103.0,89099.0,0.01122347]
[1765727209809,0.01122296,89103.0,89099.0,0.037039]
[1765727209810,0.03928082,89102.0,89099.0,0.037039]
[1765727210003,0.02805773,89102.0,89099.0,0.28596624]
[1765727210212,0.02805773,89102.0,89100.0,0.02446]
[1765727210418,0.01133872,89103.0,89100.0,0.03568334]
[1765727210767,0.00011576,89103.0,89100.0,0.03568334]
[1765727210964,0.00011576,89103.0,89101.0,0.05450033]
[1765727211166,0.002,89102.0,89101.0,0.09108033]
[1765727211367,0.00011576,89103.0,89101.0,0.31554224]
[1765727211780,0.00211576,89103.0,89101.0,0.31554224]
[1765727212480,0.22457726,89103.0,89101.0,0.05450033]
[1765727212691,0.22446437,89101.0,89099.0,0.02581553]
[1765727212905,0.22446437,89101.0,89097.0,0.01212]
[1765727212906,0.2637507,89100.0,89097.0,0.01212]
[1765727213115,0.22447188,89099.0,89097.0,0.01212]
[1765727213327,0.23569234,89100.0,89097.0,0.01212]
[1765727213547,0.23569234,89100.0,89098.0,0.0161]
[1765727213765,0.2637507,89100.0,89098.0,0.04056]
[1765727213979,0.0392817,89100.0,89099.0,0.04056]
[1765727214615,0.03005836,89100.0,89099.0,0.04056]
[1765727214840,0.002,89100.0,89099.0,0.04056]
[1765727215950,0.02805804,89101.0,89099.0,0.04056]
[1765727216234,0.004,89100.0,89099.0,0.04056]
[1765727216704,0.004,89100.0,89099.0,0.12730186]
[1765727216924,0.002,89100.0,89099.0,0.12730186]
[1765727218967,0.004,89100.0,89099.0,0.12730186]
[1765727220732,0.004,89100.0,89099.0,0.10284186]
[1765727221158,0.004,89100.0,89099.0,0.08674186]
[1765727223396,0.004,89100.0,89099.0,0.10260186]
[1765727223576,0.004,89100.0,89099.0,0.12720186]
[1765727224021,0.03205836,89100.0,89099.0,0.12720186]
[1765727224245,0.004,89100.0,89099.0,0.12720186]
[1765727224445,0.004,89100.0,89099.0,0.04046]
[1765727228636,0.004,89100.0,89099.0,0.01586]
[1765727230032,0.004,89100.0,89099.0,0.04046]
[1765727230654,0.03205836,89100.0,89099.0,0.04046]
[1765727230858,0.004,89100.0,89097.0,0.01122372]
[1765727231064,0.03205836,89100.0,89097.0,0.06405261]
[1765727231708,0.03005836,89100.0,89097.0,0.08865261]
[1765727231917,0.03005836,89100.0,89097.0,0.10020261]
[1765727232301,0.03205836,89100.0,89097.0,0.10020261]
[1765727232706,0.004,89100.0,89099.0,0.01586]
[1765727233116,0.004,89100.0,89099.0,0.12633443]
[1765727233279,0.004,89100.0,89099.0,0.04046]
[1765727233680,0.01133872,89103.0,89100.0,0.01122334]
[1765727234231,0.01133872,89103.0,89100.0,0.03582334]
[1765727235087,0.01333872,89103.0,89100.0,0.03582334]
[1765727235738,0.01533872,89103.0,89100.0,0.03582334]
[1765727236884,0.03928082,89102.0,89099.0,0.01122347]
[1765727237226,0.01122321,89101.0,89097.0,0.32467553]
[1765727237438,0.02805836,89100.0,89099.0,0.03369739]
[1765727238047,0.01322309,89102.0,89099.0,0.04492086]
[1765727238239,0.04128082,89102.0,89099.0,0.07385815]
[1765727238493,0.04328082,89102.0,89099.0,0.07385815]
[1765727238702,0.03928082,89102.0,89099.0,0.07385815]
[1765727239124,0.002,89100.0,89099.0,0.09845815]
[1765727239350,0.03928082,89102.0,89099.0,0.09845815]
[1765727239738,0.04128082,89102.0,89099.0,0.07385815]
[1765727240043,0.002,89100.0,89099.0,0.09845815]
[1765727240259,0.002,89100.0,89099.0,0.07385815]
[1765727240458,0.02805773,89102.0,89099.0,0.09845815]
[1765727240685,0.03928082,89102.0,89099.0,0.09845815]
[1765727240817,0.04128082,89102.0,89099.0,0.09845815]
[1765727241245,0.002,89100.0,89099.0,0.07385815]
[1765727241571,0.23768638,89102.0,89099.0,0.07385815]
[1765727241720,0.02805804,89101.0,89099.0,0.06263468]
[1765727241935,0.02805804,89101.0,89099.0,0.28710321]
[1765727242127,0.02805804,89101.0,89099.0,0.06263468]
[1765727242494,0.22646689,89100.0,89099.0,0.05353729]
[1765727242612,0.002,89100.0,89099.0,0.08723468]
[1765727242815,0.02805804,89101.0,89099.0,0.05353729]
[1765727243224,0.002,89100.0,89099.0,0.0246]
[1765727243633,0.03005804,89101.0,89099.0,0.0246]
[1765727244222,0.03205804,89101.0,89099.0,0.0246]
[1765727244431,0.03005804,89101.0,89099.0,0.0246]
[1765727244616,0.002,89101.0,89100.0,0.01586]
[1765727245321,0.004,89101.0,89100.0,0.04046]
[1765727245617,0.002,89101.0,89100.0,0.04046]
[1765727246029,0.22446689,89100.0,89098.0,0.03369739]
[1765727246483,0.0112246,89090.0,89085.0,0.01172]
[1765727246690,0.01122435,89092.0,89089.0,0.01172]
[1765727246821,0.01122384,89096.0,89092.0,0.02759435]
[1765727247024,0.04358214,89099.0,89093.0,0.01122422]
[1765727247025,0.01122372,89097.0,89093.0,0.01122422]
[1765727247455,0.01122372,89097.0,89094.0,0.0112241]
[1765727247782,0.23569704,89098.0,89095.0,0.01122397]
[1765727247989,0.01122359,89098.0,89095.0,0.01122397]
[1765727248339,0.04358214,89099.0,89095.0,0.01122397]
[1765727248542,0.001,89097.0,89095.0,0.01122397]
[1765727249185,0.001,89097.0,89094.0,0.0112241]
[1765727249902,0.001,89098.0,89094.0,0.04209347]
[1765727250085,0.001,89097.0,89095.0,0.01122397]
[1765727250527,0.001,89098.0,89095.0,0.01122397]
[1765727250929,0.001,89097.0,89096.0,0.01122384]
[1765727251312,0.002,89097.0,89096.0,0.05253384]
[1765727251651,0.001,89097.0,89096.0,0.09650334]
[1765727252271,0.23568799,89101.0,89096.0,0.09650334]
[1765727252427,0.001,89097.0,89096.0,0.09650334]
[1765727253238,0.003,89097.0,89096.0,0.09650334]
[1765727259353,0.003,89097.0,89096.0,0.3209803]
[1765727261775,0.003,89097.0,89096.0,0.33220364]
[1765727264718,0.003,89097.0,89096.0,0.35714364]
[1765727264962,0.003,89097.0,89096.0,0.37351364]
[1765727265401,0.003,89097.0,89096.0,0.34857364]
[1765727265612,0.003,89097.0,89096.0,0.33220364]
[1765727265810,0.003,89097.0,89096.0,0.37351364]
[1765727270946,0.0310593,89097.0,89096.0,0.37351364]
[1765727271164,0.0310593,89097.0,89096.0,0.13781284]
[1765727271362,0.0310593,89097.0,89096.0,0.0852795]
[1765727272291,0.0310593,89097.0,89094.0,0.03086937]
[1765727272292,0.22447696,89096.0,89094.0,0.03086937]
[1765727272447,0.02805993,89095.0,89094.0,0.03086937]
[1765727273230,0.02805962,89096.0,89094.0,0.03086937]
[1765727273612,0.001,89095.0,89094.0,0.03086937]
[1765727274028,0.001,89095.0,89094.0,0.05580937]
[1765727274434,0.001,89095.0,89094.0,0.08386899]
[1765727274652,0.001,89095.0,89094.0,0.10023899]
[1765727275255,0.002,89095.0,89094.0,0.10023899]
[1765727279713,0.002,89095.0,89094.0,0.07217937]
[1765727279921,0.002,89095.0,89094.0,0.08340296]
[1765727282533,0.002,89095.0,89094.0,0.04209296]
[1765727283865,0.03005993,89095.0,89094.0,0.04209296]
[1765727284065,0.002,89095.0,89094.0,0.04209296]
[1765727284876,0.002,89095.0,89094.0,0.06646296]
[1765727285078,0.002,89095.0,89094.0,0.08163296]
[1765727286026,0.002,89095.0,89094.0,0.01122359]
[1765727286027,0.0106,89095.0,89094.0,0.01122359]
[1765727286217,0.0106,89095.0,89080.0,0.22451728]
[1765727286218,0.01122523,89085.0,89080.0,0.22451728]
[1765727286426,0.0086,89081.0,89080.0,0.02805962]
[1765727286636,0.01122611,89078.0,89074.0,0.01122662]
[1765727286850,0.01122624,89077.0,89074.0,0.03996479]
[1765727287280,0.01122624,89077.0,89063.0,0.22455841]
[1765727287281,0.22882935,89076.0,89075.0,0.0337061]
[1765727287689,0.23312935,89076.0,89075.0,0.0337061]
[1765727288169,0.23312935,89076.0,89074.0,0.001]
[1765727288378,0.0043,89075.0,89074.0,0.0347061]
[1765727288999,0.0043,89075.0,89074.0,0.0337061]
[1765727290378,0.0053,89075.0,89074.0,0.0337061]
[1765727290971,0.0053,89075.0,89066.0,0.01122762]
[1765727291175,0.01122725,89069.0,89067.0,0.05740651]
[1765727291489,0.22454486,89070.0,89067.0,0.05740651]
[1765727291490,0.22454486,89070.0,89068.0,0.03370841]
[1765727292661,0.01122699,89071.0,89068.0,0.03370841]
[1765727293006,0.01122699,89071.0,89068.0,0.03570841]
[1765727293433,0.01122699,89071.0,89068.0,0.03670841]
[1765727293670,0.01122699,89071.0,89069.0,0.03700706]
[1765727294596,0.22453477,89074.0,89070.0,0.01122712]
[1765727294829,0.01122649,89075.0,89071.0,0.01122699]
[1765727295021,0.01122662,89074.0,89071.0,0.01122699]
[1765727295217,0.22451393,89082.0,89073.0,0.01122674]
[1765727295218,0.22452143,89079.0,89073.0,0.01122674]
[1765727295426,0.01122586,89080.0,89077.0,0.01122624]
[1765727295919,0.2245033,89086.0,89077.0,0.01122624]
[1765727295920,0.22450791,89084.0,89080.0,0.01122586]
[1765727296123,0.22450791,89084.0,89080.0,0.02639586]
[1765727296323,0.02806371,89083.0,89080.0,0.05076586]